fUSD/lending_fUSD_20250530
["ID","MTS","AMOUNT","RATE_DAILY","PERIOD"]
[363163399,1748604693869,-761.08,0.00024109,2]
[363163400,1748604693879,-420.0,0.00024109,2]
[363163401,1748604693894,-1824.55,0.00024109,2]
[363163402,1748604693904,-1143.21,0.00024109,2]
[363163403,1748604693914,-420.0,0.00024109,2]
[363163404,1748604693924,-1064.51,0.00024109,2]
[363163405,1748604693934,-420.0,0.00024109,2]
[363163406,1748604693944,-420.0,0.00024109,2]
[363163407,1748604693953,-420.0,0.00024109,2]
[363163408,1748604693964,-2000.0,0.00024116,2]
[363163409,1748604693975,-506.05116022,0.00024116,2]
[363163410,1748604693986,-170.71,0.00024134,2]
[363163411,1748604693995,-157.0,0.00024164,7]
[363163412,1748604694005,-40000.0,0.000242,5]
[363163413,1748604694015,-500.0,0.000242,2]
[363163414,1748604694025,-500.0,0.000242,2]
[363163415,1748604694035,-500.0,0.000242,2]
[363163416,1748604694046,-500.0,0.000242,2]
[363163417,1748604694058,-845.0,0.000242,2]
[363163418,1748604694068,-2591.86224837,0.0002421,10]
[363163419,1748604694078,-270.09719515,0.0002429,7]
[363163420,1748604694088,-1023.53486895,0.00024333,2]
[363163421,1748604694098,-2591.86224837,0.00024348,11]
[363163422,1748604694108,-1573.44,0.00024382,2]
[363163423,1748604694119,-283.56205,0.00024382,7]
[363163424,1748604694129,-1391.71,0.00024382,2]
[363163425,1748604694139,-283.56205,0.00024382,7]
[363163426,1748604694150,-7429.13,0.00024382,2]
[363163427,1748604694160,-794.62,0.00024382,2]
[363163428,1748604694172,-3174.36,0.00024382,2]
[363163429,1748604694182,-6568.92,0.00024382,2]
[363163430,1748604694192,-1736.8,0.00024382,2]
[363163431,1748604694203,-1403.38,0.00024382,2]
[363163432,1748604694213,-670.15,0.00024382,2]
[363163433,1748604694223,-9101.03,0.00024382,2]
[363163434,1748604694234,-18152.04,0.00024382,2]
[363163435,1748604694244,-27441.36,0.00024382,2]
[363163436,1748604694255,-751.61,0.00024382,2]
[363163437,1748604694265,-8935.23,0.00024382,2]
[363163438,1748604694276,-2810.26,0.00024382,2]
[363163439,1748604694286,-1874.07,0.00024382,2]
[363163440,1748604694296,-1242.14,0.00024382,2]
[363163441,1748604694306,-1551.25,0.00024382,2]
[363163442,1748604694317,-672.13,0.00024382,2]
[363163443,1748604694327,-300.0,0.00024382,2]
[363163444,1748604694337,-628.57,0.00024383,2]
[363163445,1748604694347,-420.0,0.00024383,2]
[363163446,1748604694357,-420.0,0.00024383,2]
[363163447,1748604694368,-433.48,0.00024383,2]
[363163448,1748604694378,-640.5,0.00024383,2]
[363163449,1748604694388,-420.0,0.00024383,2]
[363163450,1748604694399,-420.0,0.00024383,2]
[363163451,1748604694409,-539.07,0.00024383,2]
[363163452,1748604694418,-465.13,0.00024383,2]
[363163453,1748604694428,-420.0,0.00024383,2]
[363163454,1748604694439,-465.38,0.00024383,2]
[363163455,1748604694449,-420.0,0.00024383,2]
[363163456,1748604694459,-250.0,0.00024383,2]
[363163457,1748604694469,-420.0,0.00024383,2]
[363163458,1748604694478,-420.0,0.00024383,2]
[363163459,1748604694488,-468.76,0.00024383,2]
[363163460,1748604694498,-420.0,0.00024383,2]
[363163461,1748604694507,-420.0,0.00024383,2]
[363163462,1748604694517,-420.0,0.00024383,2]
[363163463,1748604694527,-420.0,0.00024383,2]
[363163464,1748604694538,-420.0,0.00024383,2]
[363163465,1748604694549,-420.0,0.00024383,2]
[363163466,1748604694560,-420.0,0.00024383,2]
[363163467,1748604694570,-452.19,0.00024383,2]
[363163468,1748604694580,-420.0,0.00024383,2]
[363163469,1748604694589,-420.0,0.00024383,2]
[363163470,1748604694599,-420.0,0.00024383,2]
[363163471,1748604694609,-645.55,0.00024383,2]
[363163472,1748604694619,-420.0,0.00024383,2]
[363163473,1748604694632,-420.0,0.00024383,2]
[363163474,1748604694641,-420.98,0.00024383,2]
[363163475,1748604694652,-420.0,0.00024383,2]
[363163476,1748604694662,-420.0,0.00024383,2]
[363163477,1748604694671,-420.0,0.00024383,2]
[363163478,1748604694681,-420.0,0.00024383,2]
[363163479,1748604694690,-441.38,0.00024383,2]
[363163480,1748604694700,-420.0,0.00024383,2]
[363163481,1748604694710,-552.87,0.00024383,2]
[363163482,1748604694720,-420.0,0.00024383,2]
[363163483,1748604694730,-420.0,0.00024383,2]
[363163484,1748604694739,-480.01,0.00024383,2]
[363163485,1748604694749,-420.0,0.00024383,2]
[363163486,1748604694759,-420.0,0.00024383,2]
[363163487,1748604694768,-420.0,0.00024383,2]
[363163488,1748604694778,-420.0,0.00024383,2]
[363163489,1748604694787,-496.69314647,0.00024383,2]
[363163490,1748604694797,-420.0,0.00024383,2]
[363163491,1748604694807,-420.0,0.00024383,2]
[363163492,1748604694816,-702.31,0.00024383,2]
[363163493,1748604694827,-446.43,0.00024383,2]
[363163494,1748604694836,-339.31255468,0.00024383,2]
[363163495,1748604694846,-438.29,0.00024383,2]
[363163496,1748604694856,-426.9,0.00024383,2]
[363163497,1748604694865,-420.0,0.00024383,2]
[363163498,1748604694875,-420.0,0.00024383,2]
[363163499,1748604694887,-930.8,0.00024383,2]
[363163500,1748604694897,-411.80000001,0.00024383,2]
[363163501,1748604694910,-420.0,0.00024383,2]
[363163502,1748604694919,-1732.59,0.00024383,2]
[363163503,1748604694930,-555.05,0.00024383,2]
[363163504,1748604694940,-420.0,0.00024383,2]
[363163505,1748604694951,-420.0,0.00024383,2]
[363163506,1748604694960,-1062.63,0.00024383,2]
[363163507,1748604694971,-580.84,0.00024383,2]
[363163508,1748604694982,-420.0,0.00024383,2]
[363163509,1748604694992,-642.32,0.00024383,2]
[363163510,1748604695001,-718.47,0.00024383,2]
[363163511,1748604695011,-497.4,0.00024383,2]
[363163512,1748604695021,-984.73,0.00024383,2]
[363163513,1748604695031,-576.3,0.00024383,2]
[363163514,1748604695041,-420.0,0.00024383,2]
[363163515,1748604695051,-800.26,0.00024383,2]
[363163516,1748604695061,-718.15,0.00024383,2]
[363163517,1748604695071,-612.87,0.00024383,2]
[363163518,1748604695081,-770.54,0.00024383,2]
[363163519,1748604695091,-568.6,0.00024383,2]
[363163520,1748604695101,-728.67,0.00024383,2]
[363163521,1748604695111,-595.4,0.00024383,2]
[363163522,1748604695121,-451.9365768,0.00024383,2]
[363163523,1748604695131,-1523.16,0.00024383,2]
[363163524,1748604695142,-439.89,0.00024383,2]
[363163525,1748604695153,-1185.02,0.00024383,2]
[363163526,1748604695163,-473.85,0.00024383,2]
[363163527,1748604695173,-1155.34,0.00024383,2]
[363163528,1748604695183,-852.11,0.00024383,2]
[363163529,1748604695193,-536.09,0.00024383,2]
[363163530,1748604695203,-499.47,0.00024383,2]
[363163531,1748604695213,-1064.97,0.00024383,2]
[363163532,1748604695223,-553.07,0.00024383,2]
[363163533,1748604695234,-550.09,0.00024383,2]
[363163534,1748604695244,-1249.34,0.00024383,2]
[363163535,1748604695254,-1087.42,0.00024383,2]
[363163536,1748604695264,-420.0,0.00024383,2]
[363163537,1748604695274,-748.6,0.00024383,2]
[363163538,1748604695284,-420.0,0.00024383,2]
[363163539,1748604695294,-633.8,0.00024383,2]
[363163540,1748604695304,-420.0,0.00024383,2]
[363163541,1748604695314,-569.25,0.00024383,2]
[363163542,1748604695323,-528.37,0.00024383,2]
[363163543,1748604695334,-420.0,0.00024383,2]
[363163544,1748604695344,-1602.73,0.00024383,2]
[363163545,1748604695354,-569.24,0.00024383,2]
[363163546,1748604695364,-457.6,0.00024383,2]
[363163547,1748604695374,-1032.32,0.00024383,2]
[363163548,1748604695384,-707.39,0.00024383,2]
[363163549,1748604695394,-910.96,0.00024383,2]
[363163550,1748604695404,-476.94,0.00024383,2]
[363163551,1748604695414,-1017.67,0.00024383,2]
[363163552,1748604695425,-709.34,0.00024383,2]
[363163553,1748604695435,-501.18,0.00024383,2]
[363163554,1748604695445,-677.94,0.00024383,2]
[363163555,1748604695455,-1214.26,0.00024383,2]
[363163556,1748604695466,-729.59,0.00024383,2]
[363163557,1748604695476,-646.84,0.00024383,2]
[363163558,1748604695485,-473.0,0.00024383,2]
[363163559,1748604695495,-633.82,0.00024383,2]
[363163560,1748604695505,-1308.02,0.00024383,2]
[363163561,1748604695515,-454.15,0.00024383,2]
[363163562,1748604695525,-420.0,0.00024383,2]
[363163563,1748604695534,-530.64,0.00024383,2]
[363163564,1748604695544,-520.26,0.00024383,2]
[363163565,1748604695554,-460.64,0.00024383,2]
[363163566,1748604695564,-609.32,0.00024383,2]
[363163567,1748604695574,-420.0,0.00024383,2]
[363163568,1748604695584,-1385.17,0.00024383,2]
[363163569,1748604695595,-611.87,0.00024383,2]
[363163570,1748604695605,-457.58,0.00024383,2]
[363163571,1748604695615,-498.5,0.00024383,2]
[363163572,1748604695624,-1068.05,0.00024383,2]
[363163573,1748604695633,-151.0,0.00024383,7]
[363163574,1748604695643,-534.02,0.00024383,2]
[363163575,1748604695653,-420.0,0.00024383,2]
[363163576,1748604695663,-423.02,0.00024383,2]
[363163577,1748604695673,-1806.1,0.00024383,2]
[363163578,1748604695683,-955.38,0.00024383,2]
[363163579,1748604695692,-437.24,0.00024383,2]
[363163580,1748604695702,-420.0,0.00024383,2]
[363163581,1748604695712,-998.33,0.00024383,2]
[363163582,1748604695721,-1133.83,0.00024383,2]
[363163583,1748604695732,-768.21,0.00024383,2]
[363163584,1748604695940,-774.62,0.00024383,2]
[363163585,1748604695950,-420.0,0.00024383,2]
[363163586,1748604695960,-735.92,0.00024383,2]
[363163587,1748604695970,-1319.04,0.00024383,2]
[363163588,1748604695979,-448.54,0.00024383,2]
[363163589,1748604695989,-420.0,0.00024383,2]
[363163590,1748604695999,-622.98,0.00024383,2]
[363163591,1748604696009,-420.0,0.00024383,2]
[363163592,1748604696018,-1350.91,0.00024383,2]
[363163593,1748604696028,-420.0,0.00024383,2]
[363163594,1748604696038,-420.0,0.00024383,2]
[363163595,1748604696047,-519.24,0.00024383,2]
[363163596,1748604696057,-489.38,0.00024383,2]
[363163597,1748604696067,-420.0,0.00024383,2]
[363163598,1748604696076,-613.75,0.00024383,2]
[363163599,1748604696086,-606.72,0.00024383,2]
[363163600,1748604696096,-420.0,0.00024383,2]
[363163601,1748604696105,-420.0,0.00024383,2]
[363163602,1748604696115,-476.62,0.00024383,2]
[363163603,1748604696125,-611.09,0.00024383,2]
[363163604,1748604696135,-420.0,0.00024383,2]
[363163605,1748604696145,-466.39,0.00024383,2]
[363163606,1748604696155,-420.0,0.00024383,2]
[363163607,1748604696165,-479.89,0.00024383,2]
[363163608,1748604696176,-777.7,0.00024383,2]
[363163609,1748604696187,-544.4,0.00024383,2]
[363163610,1748604696198,-420.0,0.00024383,2]
[363163611,1748604696208,-1992.36,0.00024383,2]
[363163612,1748604696218,-449.12,0.00024383,2]
[363163613,1748604696228,-1690.08,0.00024383,2]
[363163614,1748604696237,-935.34,0.00024383,2]
[363163615,1748604696247,-474.41,0.00024383,2]
[363163616,1748604696256,-420.0,0.00024383,2]
[363163617,1748604696266,-973.78,0.00024383,2]
[363163618,1748604696276,-574.23,0.00024383,2]
[363163619,1748604696285,-1023.52,0.00024383,2]
[363163620,1748604696295,-577.88,0.00024383,2]
[363163621,1748604696305,-1661.66,0.00024383,2]
[363163622,1748604696316,-531.71,0.00024383,2]
[363163623,1748604696326,-502.51869071,0.00024383,2]
[363163624,1748604696336,-772.75,0.00024383,2]
[363163625,1748604696346,-420.0,0.00024383,2]
[363163626,1748604696356,-605.59,0.00024383,2]
[363163627,1748604696366,-420.0,0.00024383,2]
[363163628,1748604696376,-420.0,0.00024383,2]
[363163629,1748604696385,-588.38,0.00024383,2]
[363163630,1748604696396,-578.91,0.00024383,2]
[363163631,1748604696406,-420.0,0.00024383,2]
[363163632,1748604696415,-606.64,0.00024383,2]
[363163633,1748604696424,-443.15,0.00024383,2]
[363163634,1748604696434,-420.0,0.00024383,2]
[363163635,1748604696443,-1125.77,0.00024383,2]
[363163636,1748604696453,-420.0,0.00024383,2]
[363163637,1748604696463,-938.03,0.00024383,2]
[363163638,1748604696472,-931.36,0.00024383,2]
[363163639,1748604696482,-420.0,0.00024383,2]
[363163640,1748604696492,-420.0,0.00024383,2]
[363163641,1748604696502,-1301.2,0.00024383,2]
[363163642,1748604696512,-775.29,0.00024383,2]
[363163643,1748604696522,-420.0,0.00024383,2]
[363163644,1748604696531,-420.0,0.00024383,2]
[363163645,1748604696541,-420.0,0.00024383,2]
[363163646,1748604696551,-575.37,0.00024383,2]
[363163647,1748604696563,-483.2,0.00024383,2]
[363163648,1748604696573,-534.46,0.00024383,2]
[363163649,1748604696583,-795.5,0.00024383,2]
[363163650,1748604696593,-420.0,0.00024383,2]
[363163651,1748604696603,-420.0,0.00024383,2]
[363163652,1748604696612,-722.47,0.00024383,2]
[363163653,1748604696622,-423.44,0.00024383,2]
[363163654,1748604696632,-487.54,0.00024383,2]
[363163655,1748604696642,-420.0,0.00024383,2]
[363163656,1748604696653,-674.84,0.00024383,2]
[363163657,1748604696663,-1084.93,0.00024383,2]
[363163658,1748604696672,-956.78,0.00024383,2]
[363163659,1748604696682,-1747.0,0.00024383,2]
[363163660,1748604696692,-523.54,0.00024383,2]
[363163661,1748604696701,-499.91,0.00024383,2]
[363163662,1748604696711,-903.59,0.00024383,2]
[363163663,1748604696721,-865.58,0.00024383,2]
[363163664,1748604696730,-900.74,0.00024383,2]
[363163665,1748604696740,-420.0,0.00024383,2]
[363163666,1748604696750,-1372.63,0.00024383,2]
[363163667,1748604696759,-588.22,0.00024383,2]
[363163668,1748604696767,-429.11,0.00024383,2]
[363163669,1748604696777,-770.98,0.00024383,2]
[363163670,1748604696786,-420.0,0.00024383,2]
[363163671,1748604696796,-1375.2,0.00024383,2]
[363163672,1748604696806,-768.17,0.00024383,2]
[363163673,1748604696816,-517.47,0.00024383,2]
[363163674,1748604696825,-420.0,0.00024383,2]
[363163675,1748604696835,-623.0,0.00024383,2]
[363163676,1748604696845,-793.05,0.00024383,2]
[363163677,1748604696855,-1241.06,0.00024383,2]
[363163678,1748604696865,-765.2,0.00024383,2]
[363163679,1748604696875,-420.0,0.00024383,2]
[363163680,1748604696886,-421.93,0.00024383,2]
[363163681,1748604696899,-421.91,0.00024383,2]
[363163682,1748604696910,-485.75,0.00024383,2]
[363163683,1748604696920,-186.15343706,0.00024383,2]
[363163684,1748604696931,-420.0,0.00024383,2]
[363163685,1748604696940,-491.63,0.00024383,2]
[363163686,1748604696950,-502.61,0.00024383,2]
[363163687,1748604696961,-430.15,0.00024383,2]
[363163688,1748604696971,-10073.27,0.00024383,2]
[363163689,1748604696981,-742.8,0.00024383,2]
[363163690,1748604696991,-420.0,0.00024383,2]
[363163691,1748604697000,-2689.83,0.00024383,2]
[363163692,1748604697010,-1981.59,0.00024383,2]
[363163693,1748604697020,-607.85,0.00024383,2]
[363163694,1748604697030,-564.47,0.00024383,2]
[363163695,1748604697040,-1369.33,0.00024383,2]
[363163696,1748604697050,-576.41,0.00024383,2]
[363163697,1748604697060,-12307.47,0.00024383,2]
[363163698,1748604697070,-1369.38,0.00024383,2]
[363163699,1748604697080,-863.99,0.00024383,2]
[363163700,1748604697089,-1245.87,0.00024383,2]
[363163701,1748604697099,-5194.13,0.00024383,2]
[363163702,1748604697109,-420.0,0.00024383,2]
[363163703,1748604697119,-880.77,0.00024383,2]
[363163704,1748604697128,-563.44,0.00024383,2]
[363163705,1748604697138,-2466.96,0.00024383,2]
[363163706,1748604697147,-420.0,0.00024383,2]
[363163707,1748604697157,-631.65,0.00024383,2]
[363163708,1748604697167,-659.94,0.00024383,2]
[363163709,1748604697177,-816.72,0.00024383,2]
[363163710,1748604697187,-420.0,0.00024383,2]
[363163711,1748604697196,-598.75,0.00024383,2]
[363163712,1748604697205,-2447.94,0.00024383,2]
[363163713,1748604697215,-2947.99,0.00024383,2]
[363163714,1748604697224,-420.0,0.00024383,2]
[363163715,1748604697234,-1153.83,0.00024383,2]
[363163716,1748604697244,-3076.84,0.00024383,2]
[363163717,1748604697254,-769.26,0.00024383,2]
[363163718,1748604697263,-924.16,0.00024383,2]
[363163719,1748604697273,-644.07,0.00024383,2]
[363163720,1748604697283,-420.0,0.00024383,2]
[363163721,1748604697292,-1310.77,0.00024383,2]
[363163722,1748604697302,-1040.66,0.00024383,2]
[363163723,1748604697312,-520.85,0.00024383,2]
[363163724,1748604697321,-1315.08,0.00024383,2]
[363163725,1748604697331,-420.0,0.00024383,2]
[363163726,1748604697341,-1506.01,0.00024383,2]
[363163727,1748604697354,-420.0,0.00024383,2]
[363163728,1748604697364,-1515.01,0.00024383,2]
[363163729,1748604697374,-1337.36,0.00024383,2]
[363163730,1748604697384,-3730.71,0.00024383,2]
[363163731,1748604697394,-425.25,0.00024383,2]
[363163732,1748604697404,-1314.08,0.00024383,2]
[363163733,1748604697413,-759.43,0.00024383,2]
[363163734,1748604697424,-909.46,0.00024383,2]
[363163735,1748604697435,-420.0,0.00024383,2]
[363163736,1748604697445,-673.25,0.00024383,2]
[363163737,1748604697454,-612.32,0.00024383,2]
[363163738,1748604697463,-1256.48,0.00024383,2]
[363163739,1748604697473,-2157.82,0.00024383,2]
[363163740,1748604697483,-1075.01,0.00024383,2]
[363163741,1748604697492,-1309.63,0.00024383,2]
[363163742,1748604697502,-915.55,0.00024383,2]
[363163743,1748604697511,-2231.36,0.00024383,2]
[363163744,1748604697521,-1218.05,0.00024383,2]
[363163745,1748604697531,-420.0,0.00024383,2]
[363163746,1748604697540,-420.0,0.00024383,2]
[363163747,1748604697550,-6828.35,0.00024383,2]
[363163748,1748604697559,-2569.35,0.00024383,2]
[363163749,1748604697569,-1631.2,0.00024383,2]
[363163750,1748604697578,-611.68,0.00024383,2]
[363163751,1748604697589,-3976.57,0.00024383,2]
[363163752,1748604697599,-555.53,0.00024383,2]
[363163753,1748604697608,-1192.67,0.00024383,2]
[363163754,1748604697618,-3327.44,0.00024383,2]
[363163755,1748604697627,-828.67,0.00024383,2]
[363163756,1748604697636,-420.0,0.00024383,2]
[363163757,1748604697646,-3739.43,0.00024383,2]
[363163758,1748604697656,-420.0,0.00024383,2]
[363163759,1748604697665,-772.93,0.00024383,2]
[363163760,1748604697673,-2900.14,0.00024383,2]
[363163761,1748604697682,-3733.9,0.00024383,2]
[363163762,1748604697691,-1294.2,0.00024383,2]
[363163763,1748604697700,-1235.41,0.00024383,2]
[363163764,1748604697709,-5087.08,0.00024383,2]
[363163765,1748604697718,-1678.74,0.00024383,2]
[363163766,1748604697727,-582.4,0.00024383,2]
[363163767,1748604697737,-1439.67,0.00024383,2]
[363163768,1748604697746,-580.13,0.00024383,2]
[363163769,1748604697756,-6434.09,0.00024383,2]
[363163770,1748604697765,-759.66,0.00024383,2]
[363163771,1748604697775,-3623.76,0.00024383,2]
[363163772,1748604697784,-655.72,0.00024383,2]
[363163773,1748604697794,-642.76,0.00024383,2]
[363163774,1748604697803,-481.9,0.00024383,2]
[363163775,1748604697813,-447.8,0.00024383,2]
[363163776,1748604697822,-549.6,0.00024383,2]
[363163777,1748604697831,-3772.06,0.00024383,2]
[363163778,1748604697841,-2238.52,0.00024383,2]
[363163779,1748604697850,-656.16,0.00024383,2]
[363163780,1748604697860,-2601.73,0.00024383,2]
[363163781,1748604697870,-1054.88,0.00024383,2]
[363163782,1748604697880,-568.59,0.00024383,2]
[363163783,1748604697895,-1168.1,0.00024383,2]
[363163784,1748604697904,-1669.51,0.00024383,2]
[363163785,1748604697912,-581.44,0.00024383,2]
[363163786,1748604697922,-999.1,0.00024383,2]
[363163787,1748604697933,-3565.93,0.00024383,2]
[363163788,1748604697943,-420.0,0.00024383,2]
[363163789,1748604697953,-420.0,0.00024383,2]
[363163790,1748604697963,-644.61,0.00024383,2]
[363163791,1748604697974,-1021.83,0.00024383,2]
[363163792,1748604697983,-1573.75,0.00024383,2]
[363163793,1748604697992,-420.0,0.00024383,2]
[363163794,1748604698002,-1017.27,0.00024383,2]
[363163795,1748604698011,-700.99,0.00024383,2]
[363163796,1748604698021,-2494.53,0.00024383,2]
[363163797,1748604698030,-680.88,0.00024383,2]
[363163798,1748604698040,-2312.08,0.00024383,2]
[363163799,1748604698050,-1182.54,0.00024383,2]
[363163800,1748604698060,-906.67,0.00024383,2]
[363163801,1748604698071,-2382.61,0.00024383,2]
[363163802,1748604698080,-8094.13,0.00024383,2]
[363163803,1748604698090,-516.49,0.00024383,2]
[363163804,1748604698100,-3383.87,0.00024383,2]
[363163805,1748604698109,-927.42,0.00024383,2]
[363163806,1748604698119,-4483.36,0.00024383,2]
[363163807,1748604698129,-515.51,0.00024383,2]
[363163808,1748604698138,-639.62,0.00024383,2]
[363163809,1748604698149,-2136.49,0.00024383,2]
[363163810,1748604698160,-420.0,0.00024383,2]
[363163811,1748604698170,-839.58,0.00024383,2]
[363163812,1748604698181,-979.47,0.00024383,2]
[363163813,1748604698191,-1149.03,0.00024383,2]
[363163814,1748604698202,-608.6,0.00024383,2]
[363163815,1748604698211,-939.09,0.00024383,2]
[363163816,1748604698221,-1482.61,0.00024383,2]
[363163817,1748604698231,-1889.77,0.00024383,2]
[363163818,1748604698242,-750.99,0.00024383,2]
[363163819,1748604698251,-960.87,0.00024383,2]
[363163820,1748604698261,-1000.0,0.00024383,2]
[363163821,1748604698271,-514.33,0.00024383,2]
[363163822,1748604698280,-431.76,0.00024383,2]
[363163823,1748604698291,-1436.8,0.00024383,2]
[363163824,1748604698302,-866.43,0.00024383,2]
[363163825,1748604698311,-493.51,0.00024383,2]
[363163826,1748604698320,-10057.47,0.00024383,2]
[363163827,1748604698329,-754.64,0.00024383,2]
[363163828,1748604698338,-222.56191536,0.00024383,2]
[363163829,1748604698348,-574.11,0.00024383,2]
[363163830,1748604698358,-2523.48,0.00024383,2]
[363163831,1748604698368,-864.09,0.00024383,2]
[363163832,1748604698378,-420.0,0.00024383,2]
[363163833,1748604698387,-420.0,0.00024383,2]
[363163834,1748604698396,-595.39,0.00024383,2]
[363163835,1748604698405,-2343.17,0.00024383,2]
[363163836,1748604698415,-1350.61,0.00024383,2]
[363163837,1748604698424,-1275.82,0.00024383,2]
[363163838,1748604698434,-785.99,0.00024383,2]
[363163839,1748604698444,-10528.63,0.00024383,2]
[363163840,1748604698454,-420.0,0.00024383,2]
[363163841,1748604698464,-746.67,0.00024383,2]
[363163842,1748604698473,-1173.07,0.00024383,2]
[363163843,1748604698483,-1197.98,0.00024383,2]
[363163844,1748604698493,-2200.67,0.00024383,2]
[363163845,1748604698503,-845.16,0.00024383,2]
[363163846,1748604698513,-795.97,0.00024383,2]
[363163847,1748604698523,-1300.55,0.00024383,2]
[363163848,1748604698533,-785.56,0.00024383,2]
[363163849,1748604698543,-6935.34,0.00024383,2]
[363163850,1748604698552,-420.0,0.00024383,2]
[363163851,1748604698561,-420.0,0.00024383,2]
[363163852,1748604698570,-420.0,0.00024383,2]
[363163853,1748604698580,-1476.35,0.00024383,2]
[363163854,1748604698590,-5936.94,0.00024383,2]
[363163855,1748604698599,-420.0,0.00024383,2]
[363163856,1748604698609,-123071.45,0.00024383,2]
[363163857,1748604698618,-4600.82,0.00024383,2]
[363163858,1748604698628,-574.07,0.00024383,2]
[363163859,1748604698638,-325.64247354,0.00024383,2]
[363163860,1748604698647,-1760.95,0.00024383,2]
[363163861,1748604698657,-632.71,0.00024383,2]
[363163862,1748604698668,-420.0,0.00024383,2]
[363163863,1748604698678,-792.56,0.00024383,2]
[363163864,1748604698687,-891.11,0.00024383,2]
[363163865,1748604698696,-1035.56,0.00024383,2]
[363163866,1748604698706,-876.4,0.00024383,2]
[363163867,1748604698715,-3046.1,0.00024383,2]
[363163868,1748604698725,-868.44,0.00024383,2]
[363163869,1748604698734,-781.24,0.00024383,2]
[363163870,1748604698744,-1178.18,0.00024383,2]
[363163871,1748604698754,-31646.38,0.00024383,2]
[363163872,1748604698763,-420.0,0.00024383,2]
[363163873,1748604698773,-996.67,0.00024383,2]
[363163874,1748604698783,-1089.79,0.00024383,2]
[363163875,1748604698792,-257.94187463,0.00024383,2]
[363163876,1748604698802,-875.57,0.00024383,2]
[363163877,1748604698812,-2264.05,0.00024383,2]
[363163878,1748604698823,-420.0,0.00024383,2]
[363163879,1748604698833,-1584.69,0.00024383,2]
[363163880,1748604698843,-951.88,0.00024383,2]
[363163881,1748604698853,-520.84,0.00024383,2]
[363163882,1748604698863,-1161.85,0.00024383,2]
[363163883,1748604698872,-423.91,0.00024383,2]
[363163884,1748604698881,-1451.673205,0.00024383,7]
[363163885,1748604698895,-1822.04,0.00024383,2]
[363163886,1748604698905,-420.0,0.00024383,2]
[363163887,1748604698915,-654.3,0.00024383,2]
[363163888,1748604698924,-1451.67321184,0.00024383,7]
[363163889,1748604698934,-761.08,0.00024383,2]
[363163890,1748604698943,-1824.55,0.00024383,2]
[363163891,1748604698953,-1143.21,0.00024383,2]
[363163892,1748604698965,-1064.51,0.00024383,2]
[363163893,1748604698974,-749.51480486,0.00024403,2]
[363163894,1748604698984,-2591.86224837,0.00024486,11]
[363163895,1748604698994,-326.02,0.00024493,2]
[363163896,1748604699004,-326.08,0.00024493,2]
[363163897,1748604699014,-163.04,0.00024493,2]
[363163898,1748604699023,-163.05,0.00024493,2]